Department family,Entity,Date,Expense type,Expense area,Supplier_,Transaction number,Amount
Defra,Natural England,05-Jul-11,Grants & contributions,Delivering with Communities,Allerdale Borough Council,ERS-977184-34626,"73,738.48"
Defra,Natural England,05-Jul-11,Legal costs,Capability,Browne Jacobson,199776,"31,048.73"
Defra,Natural England,05-Jul-11,Land Management payments,Delivery with Communities,Caldbeck Commons Fund,ERS-977229-34630,"79,032.07"
Defra,Natural England,05-Jul-11,Grants & contributions,Delivering with Communities,Lancaster City Council,ERS-977182-34628,"70,823.90"
Defra,Natural England,07-Jul-11,Barclaycard purchases,Capability,Barclaycard Business Issuing,NEJUN2011BILL,"239,203.59"
Defra,Natural England,07-Jul-11,Other programme expenditure,Science & Evidence,Bat Conservation Trust,1123,"59,808.00"
Defra,Natural England,07-Jul-11,Grants & contributions,Delivery with Communities,Envirolink North West,ENV093201112100611,"67,669.20"
Defra,Natural England,07-Jul-11,Telephony costs,Capability,Global Crossing,80265137,"54,378.79"
Defra,Natural England,11-Jul-11,"IT services, equipment & consumables",Capability,DEFRA,1000007999,"2,294,884.80"
Defra,Natural England,11-Jul-11,Telephony costs,Capability,Global Crossing,IN004927,"56,759.35"
Defra,Natural England,11-Jul-11,Rail travel costs,Capability,Redfern Travel Ltd,1.07111E+12,"142,272.78"
Defra,Natural England,11-Jul-11,Grants & contributions,Delivery with Communities,Suffolk County Council,9051309,"29,084.00"
Defra,Natural England,11-Jul-11,Grants & contributions,Delivery with Communities,Suffolk County Council,9051311,"29,903.00"
Defra,Natural England,13-Jul-11,"IT services, equipment & consumables",Capability,Atos IT Services UK Ltd,5584086182,"28,800.00"
Defra,Natural England,13-Jul-11,Land Management payments,Delivery with Communities,Charles Blois,ERS-977317-34693,"89,466.58"
Defra,Natural England,13-Jul-11,Land Management payments,Delivery with Communities,Coke Estates Ltd,ERS-977318-34692,"62,500.00"
Defra,Natural England,13-Jul-11,Telephony costs,Capability,Global Crossing,80266919,"59,821.50"
Defra,Natural England,13-Jul-11,Grants & contributions,Delivering with Communities,Lancashire County Council,ERS-977287-34686,"123,857.35"
Defra,Natural England,13-Jul-11,Grants & contributions,Customers,Northampton Borough Council,ERS-977316-34687,"33,179.82"
Defra,Natural England,13-Jul-11,Grants & contributions,Delivery with Communities,University Of Kent,ERS-977297-34691,"41,989.00"
Defra,Natural England,13-Jul-11,Grants & contributions,Customers,Yorkshire Wildlife Trust,ERS-977335-34696,"46,532.85"
Defra,Natural England,19-Jul-11,Legal costs,Capability,Browne Jacobson,200839,"72,505.58"
Defra,Natural England,19-Jul-11,Vehicle costs,Capability,DEFRA,1000008111,"39,818.29"
Defra,Natural England,21-Jul-11,Other programme expenditure,Delivery with Communities,A E A Technology plc,6144091,"34,747.20"
Defra,Natural England,21-Jul-11,Other programme expenditure,Delivery with Communities,A E A Technology plc,6144190,"31,699.20"
Defra,Natural England,21-Jul-11,Rent & management & utility charges,Capability,D T Z,28408,"73,829.99"
Defra,Natural England,21-Jul-11,Rent & management & utility charges,Capability,D T Z,28418,"92,648.28"
Defra,Natural England,21-Jul-11,Rent & management & utility charges,Capability,D T Z,28428,"27,532.51"
Defra,Natural England,21-Jul-11,Rent & management & utility charges,Capability,D T Z,28453,"36,074.29"
Defra,Natural England,21-Jul-11,Rent & management & utility charges,Capability,D T Z,28459,"60,567.29"
Defra,Natural England,21-Jul-11,Rent & management & utility charges,Capability,D T Z,28467,"53,325.47"
Defra,Natural England,21-Jul-11,Rent & management & utility charges,Capability,D T Z,28475,"41,020.21"
Defra,Natural England,21-Jul-11,Rent & management & utility charges,Capability,D T Z,28478,"35,157.36"
Defra,Natural England,21-Jul-11,Rent & management & utility charges,Capability,D T Z,28484,"57,089.07"
Defra,Natural England,21-Jul-11,Rent & management & utility charges,Capability,D T Z,28492,"84,839.77"
Defra,Natural England,21-Jul-11,Rent & management & utility charges,Capability,D T Z,28494,"88,913.82"
Defra,Natural England,21-Jul-11,Grants & contributions,Customers,The Wildlife Trust for Birmingham and the Black Country,ERS-977363-34711,"40,000.00"
Defra,Natural England,25-Jul-11,"IT services, equipment & consumables",Capability,Atos IT Services UK Ltd,5584086456,"1,011,624.00"
Defra,Natural England,25-Jul-11,Rent & management & utility charges,Capability,D T Z,28445,"28,620.05"
Defra,Natural England,25-Jul-11,Rent & management & utility charges,Capability,D T Z,28476,"32,554.44"
Defra,Natural England,27-Jul-11,"IT services, equipment & consumables",Capability,Atos IT Services UK Ltd,5584086842,"238,943.17"
Defra,Natural England,27-Jul-11,Grants & contributions,Customers,Bolton Metropolitan District Council,ERS-977415-35012,"30,178.16"
Defra,Natural England,27-Jul-11,Rent & management & utility charges,Capability,D T Z,28460,"135,357.47"
Defra,Natural England,27-Jul-11,Rent & management & utility charges,Capability,D T Z,28493,"105,952.80"
Defra,Natural England,27-Jul-11,Grants & contributions,Delivering with Communities,East Sussex County Council,ERS-977365-35006,"237,474.00"
Defra,Natural England,27-Jul-11,Telephony costs,Capability,Global Crossing,80231253,"67,653.56"
Defra,Natural England,27-Jul-11,Grants & contributions,Customers,Hampshire & Isle Of Wight Wildlife Trust,ERS-977416-35017,"25,004.68"
Defra,Natural England,27-Jul-11,Grants & contributions,Customers,Imayla.,ERS-977370-35019,"36,500.00"
Defra,Natural England,27-Jul-11,Other programme expenditure,Delivery with Communities,Promar International Ltd,21074676,"35,784.00"
Defra,Natural England,27-Jul-11,Grants & contributions,Delivery with Communities,University Of Kent,ERS-977411-35013,"41,989.00"
Defra,Natural England,29-Jul-11,"IT services, equipment & consumables",Capability,Atos IT Services UK Ltd,5584086841,"755,785.14"
